fUSD/lending_fUSD_20241121
["ID","MTS","AMOUNT","RATE_DAILY","PERIOD"]
[342950521,1732217467957,-1116.54,0.00042191,11]
[342950522,1732217467966,-500.0,0.00042191,11]
[342950523,1732217467976,-500.0,0.00042191,11]
[342950524,1732217467985,-586.33699714,0.00042191,11]
[342950525,1732217467995,-639.79,0.00042191,11]
[342950526,1732217468004,-1143.93,0.00042191,10]
[342950527,1732217468013,-607.13044617,0.00042191,11]
[342950528,1732217468023,-777.56,0.00042191,11]
[342950529,1732217468032,-6107.76,0.00042191,11]
[342950530,1732217468042,-1212.16,0.00042191,11]
[342950531,1732217468051,-172.5038443,0.00042191,11]
[342950532,1732217468060,-500.0,0.00042191,11]
[342950533,1732217468070,-300.0,0.00042227,120]
[342950534,1732217468079,-150.0,0.00042233,30]
[342950535,1732217468089,-433.47,0.00042233,30]
[342950536,1732217468098,-150.0,0.00042233,30]
[342950537,1732217468107,-865.34,0.00042233,30]
[342950538,1732217468117,-433.47,0.00042233,30]
[342950539,1732217468126,-312.32,0.00042233,30]
[342950540,1732217468135,-150.0,0.00042233,30]
[342950541,1732217468145,-433.47,0.00042233,30]
[342950542,1732217468159,-150.0,0.00042233,30]
[342950543,1732217468169,-433.47,0.00042233,30]
[342950544,1732217468178,-150.0,0.00042233,30]
[342950545,1732217468187,-300.0,0.00042233,30]
[342950546,1732217468196,-432.55,0.00042233,30]
[342950547,1732217468205,-433.41,0.00042233,30]
[342950548,1732217468215,-300.0,0.00042234,120]
[342950549,1732217468224,-969.18,0.00042235,30]
[342950550,1732217468233,-969.18,0.00042235,30]
[342950551,1732217468243,-969.18,0.00042235,30]
[342950552,1732217468252,-969.18,0.00042235,30]
[342950553,1732217468261,-969.18,0.00042235,30]
[342950554,1732217468270,-969.18,0.00042235,30]
[342950555,1732217468279,-969.18,0.00042235,30]
[342950556,1732217468289,-969.18,0.00042235,30]
[342950557,1732217468298,-969.18,0.00042235,30]
[342950558,1732217468308,-969.18,0.00042235,30]
[342950559,1732217468317,-969.18,0.00042235,30]
[342950560,1732217468327,-969.18,0.00042235,30]
[342950561,1732217468336,-969.18,0.00042235,30]
[342950562,1732217468345,-969.18,0.00042235,30]
[342950563,1732217468354,-969.18,0.00042235,30]
[342950564,1732217468363,-969.18,0.00042235,30]
[342950565,1732217468372,-969.18,0.00042235,30]
[342950566,1732217468382,-969.18,0.00042235,30]
[342950567,1732217468391,-593.98,0.00042235,30]
[342950568,1732217468408,-610.612746,0.00042235,14]
[342950569,1732217468418,-201.639152,0.00042235,14]
[342950570,1732217468428,-465.219636,0.00042235,14]
[342950571,1732217468438,-653.448917,0.00042235,14]
[342950572,1732217468447,-465.219636,0.00042235,14]
[342950573,1732217468456,-653.448917,0.00042235,14]
[342950574,1732217468465,-457.257012,0.00042235,14]
[342950575,1732217468474,-457.257012,0.00042235,14]
[342950576,1732217468483,-151.0,0.00042235,14]
[342950577,1732217468492,-271.354248,0.00042235,14]
[342950578,1732217468501,-990.526881,0.00042235,14]
[342950579,1732217468510,-151.0,0.00042235,14]
[342950580,1732217468520,-214.248085,0.00042235,14]
[342950581,1732217468529,-214.248085,0.00042235,14]
[342950582,1732217468538,-484.845,0.00042235,14]
[342950583,1732217468547,-484.845,0.00042235,14]
[342950584,1732217468556,-340.256701,0.00042235,14]
[342950585,1732217468566,-340.256701,0.00042235,14]
[342950586,1732217468575,-151.0,0.00042235,14]
[342950587,1732217468585,-151.0,0.00042235,14]
[342950588,1732217468594,-318.982561,0.00042235,14]
[342950589,1732217468603,-318.982561,0.00042235,14]
[342950590,1732217468612,-581.503174,0.00042235,14]
[342950591,1732217468621,-581.503174,0.00042235,14]
[342950592,1732217468630,-151.0,0.00042235,14]
[342950593,1732217468640,-151.0,0.00042235,14]
[342950594,1732217468652,-313.221751,0.00042235,14]
[342950595,1732217468662,-313.221751,0.00042235,14]
[342950596,1732217468671,-395.860156,0.00042235,14]
[342950597,1732217468680,-395.860156,0.00042235,14]
[342950598,1732217468688,-532.540821,0.00042235,14]
[342950599,1732217468698,-522.73797,0.00042235,14]
[342950600,1732217468707,-522.73797,0.00042235,14]
[342950601,1732217468717,-532.540821,0.00042235,14]
[342950602,1732217468726,-307.098401,0.00042235,14]
[342950603,1732217468735,-212.117254,0.00042235,7]
[342950604,1732217468745,-307.098401,0.00042235,14]
[342950605,1732217468754,-151.0,0.00042235,14]
[342950606,1732217468767,-212.117254,0.00042235,7]
[342950607,1732217468776,-190.598245,0.00042235,14]
[342950608,1732217468785,-570.576073,0.00042235,14]
[342950609,1732217468794,-570.576073,0.00042235,14]
[342950610,1732217468804,-150.0,0.00042254,30]
[342950611,1732217468814,-151.0,0.00042254,30]
[342950612,1732217468823,-182.10255,0.00042288,30]
[342950613,1732217468832,-201.0,0.000423,30]
[342950614,1732217468842,-204.0,0.000423,30]
[342950615,1732217468851,-274.0,0.000423,2]
[342950616,1732217468860,-152.39,0.000423,33]
[342950617,1732217468869,-152.39,0.000423,33]
[342950618,1732217468879,-455.87,0.00042326,120]
[342950619,1732217468888,-703.2,0.00042326,7]
[342950620,1732217468897,-500.0,0.00042364,11]
[342950621,1732217468908,-500.0,0.00042364,11]
[342950622,1732217468917,-685.18,0.00042364,11]
[342950623,1732217468927,-500.0,0.00042364,11]
[342950624,1732217468936,-3088.05,0.00042364,11]
[342950625,1732217468946,-620.25,0.00042364,11]
[342950626,1732217468955,-500.0,0.00042364,11]
[342950627,1732217468965,-1081.59,0.00042364,11]
[342950628,1732217468974,-548.38,0.00042364,11]
[342950629,1732217468983,-5924.49,0.00042364,2]
[342950630,1732217468993,-741.81,0.00042364,11]
[342950631,1732217469002,-608.57,0.00042364,11]
[342950632,1732217469011,-1091.24,0.00042364,11]
[342950633,1732217469020,-156.01117899,0.00042384,30]
[342950634,1732217469029,-500.0,0.00042444,120]
[342950635,1732217469039,-2000.0,0.00042444,120]
[342950636,1732217469048,-500.0,0.00042444,120]
[342950637,1732217469057,-500.0,0.00042444,120]
[342950638,1732217469066,-200.0,0.00042444,120]
[342950639,1732217469075,-703.2,0.00042463,7]
[342950640,1732217469084,-500.0,0.00042465,30]
[342950641,1732217469096,-766.72,0.00042465,11]
[342950642,1732217469104,-500.0,0.00042465,11]
[342950643,1732217469113,-1774.58,0.00042465,10]
[342950644,1732217469122,-500.0,0.00042465,11]
[342950645,1732217469132,-1061.2,0.00042465,11]
[342950646,1732217469141,-500.0,0.00042465,11]
[342950647,1732217469153,-492.21264251,0.00042465,11]
[342950648,1732217469162,-678.05,0.00042465,11]
[342950649,1732217469170,-518.39,0.00042465,11]
[342950650,1732217469180,-2438.63,0.00042465,11]
[342950651,1732217469190,-695.85,0.00042465,11]
[342950652,1732217469199,-1019.62,0.00042465,11]
[342950653,1732217469208,-500.0,0.00042465,11]
[342950654,1732217469217,-748.44,0.00042465,11]
[342950655,1732217469226,-500.0,0.00042465,11]
[342950656,1732217469236,-500.0,0.00042465,11]
[342950657,1732217469245,-502.27,0.00042465,11]
[342950658,1732217469254,-505.55,0.00042465,11]
[342950659,1732217469263,-1116.54,0.00042465,11]
[342950660,1732217469273,-500.0,0.00042465,11]
[342950661,1732217469283,-500.0,0.00042465,11]
[342950662,1732217469293,-639.79,0.00042465,11]
[342950663,1732217469302,-1143.93,0.00042465,10]
[342950664,1732217469312,-777.56,0.00042465,11]
[342950665,1732217469321,-6107.76,0.00042465,11]
[342950666,1732217469332,-1212.16,0.00042465,11]
[342950667,1732217469342,-1908.333587,0.0004248,19]
[342950668,1732217469350,-800.0,0.00042486,120]
[342950669,1732217469359,-182.10255,0.00042488,30]
[342950670,1732217469368,-955.80869,0.000425,44]
[342950671,1732217469377,-158.0,0.000425,46]
[342950672,1732217469386,-1000.0,0.000425,19]
[342950673,1732217469395,-604.01,0.00042506,2]
[342950674,1732217469407,-1000.0,0.0004252,19]
[342950675,1732217469416,-1000.0,0.0004254,19]
[342950676,1732217469425,-1000.0,0.0004256,19]
[342950677,1732217469435,-1000.0,0.0004258,19]
[342950678,1732217469444,-538.8351098,0.0004259,120]
[342950679,1732217469454,-548.0,0.00042591,60]
[342950680,1732217469463,-703.2,0.000426,7]
[342950681,1732217469472,-1000.0,0.000426,19]
[342950682,1732217469481,-500.0,0.00042611,60]
[342950683,1732217469490,-500.0,0.00042611,60]
[342950684,1732217469499,-1000.0,0.0004262,19]
[342950685,1732217469508,-2731.01,0.0004263,120]
[342950686,1732217469518,-156.01117899,0.0004263,30]
[342950687,1732217469527,-500.0,0.00042638,11]
[342950688,1732217469536,-500.0,0.00042638,11]
[342950689,1732217469545,-685.18,0.00042638,11]
[342950690,1732217469554,-500.0,0.00042638,11]
[342950691,1732217469564,-3088.05,0.00042638,11]
[342950692,1732217469573,-620.25,0.00042638,11]
[342950693,1732217469582,-500.0,0.00042638,11]
[342950694,1732217469591,-1081.59,0.00042638,11]
[342950695,1732217469600,-548.38,0.00042638,11]
[342950696,1732217469609,-5924.49,0.00042638,2]
[342950697,1732217469618,-741.81,0.00042638,11]
[342950698,1732217469627,-608.57,0.00042638,11]
[342950699,1732217469636,-1091.24,0.00042638,11]
[342950700,1732217469645,-1000.0,0.0004264,19]
[342950701,1732217469659,-1352.777862,0.0004264,19]
[342950702,1732217469671,-1000.0,0.0004266,19]
[342950703,1732217469680,-1000.0,0.0004266,19]
[342950704,1732217469693,-5246.1678003,0.00042661,2]
[342950705,1732217469702,-3037.4890579,0.00042661,2]
[342950706,1732217469711,-1000.0,0.0004268,19]
[342950707,1732217469720,-1000.0,0.0004268,19]
[342950708,1732217469729,-182.10255,0.00042688,30]
[342950709,1732217469738,-1154.07182175,0.00042689,60]
[342950710,1732217469748,-1143.43282647,0.00042689,60]
[342950711,1732217469757,-992104.72591961,0.0004269,60]
[342950712,1732217469767,-158941.58667806,0.0004269,60]
[342950713,1732217469779,-151.0,0.0004269,14]
[342950714,1732217469788,-151.0,0.0004269,14]
[342950715,1732217469798,-299.673936,0.0004269,14]
[342950716,1732217469807,-299.673936,0.0004269,14]
[342950717,1732217469819,-161.735392,0.0004269,14]
[342950718,1732217469828,-161.735392,0.0004269,14]
[342950719,1732217469837,-333.39,0.0004269,14]
[342950720,1732217469849,-333.39,0.0004269,14]
[342950721,1732217469858,-219.815437,0.0004269,14]
[342950722,1732217469868,-219.815437,0.0004269,14]
[342950723,1732217469877,-208.901966,0.0004269,14]
[342950724,1732217469887,-169.111767,0.0004269,14]
[342950725,1732217469896,-208.901966,0.0004269,14]
[342950726,1732217469911,-151.0,0.0004269,14]
[342950727,1732217469921,-151.0,0.0004269,14]
[342950728,1732217469930,-151.0,0.0004269,14]
[342950729,1732217469940,-295.748167,0.0004269,14]
[342950730,1732217469949,-374.7389,0.0004269,14]
[342950731,1732217469959,-374.7389,0.0004269,14]
[342950732,1732217469968,-262.5162,0.0004269,14]
[342950733,1732217469977,-262.5162,0.0004269,14]
[342950734,1732217469987,-264.857564,0.0004269,14]
[342950735,1732217469996,-151.0,0.0004269,14]
[342950736,1732217470006,-264.857564,0.0004269,14]
[342950737,1732217470015,-224.244943,0.0004269,14]
[342950738,1732217470024,-224.244943,0.0004269,14]
[342950739,1732217470034,-151.0,0.0004269,14]
[342950740,1732217470043,-390.811008,0.0004269,14]
[342950741,1732217470052,-390.811008,0.0004269,14]
[342950742,1732217470062,-330.6625,0.0004269,14]
[342950743,1732217470072,-330.6625,0.0004269,14]
[342950744,1732217470081,-465.0803,0.0004269,14]
[342950745,1732217470090,-465.0803,0.0004269,14]
[342950746,1732217470099,-919.83258,0.0004269,14]
[342950747,1732217470108,-919.83258,0.0004269,14]
[342950748,1732217470116,-526.559534,0.0004269,14]
[342950749,1732217470125,-205.058868,0.0004269,14]
[342950750,1732217470134,-205.058868,0.0004269,14]
[342950751,1732217470144,-553.32888,0.0004269,14]
[342950752,1732217470154,-192.18045,0.0004269,14]
[342950753,1732217470163,-192.18045,0.0004269,14]
[342950754,1732217470172,-151.0,0.0004269,14]
[342950755,1732217470181,-151.0,0.0004269,14]
[342950756,1732217470190,-414.786101,0.0004269,14]
[342950757,1732217470200,-151.0,0.0004269,14]
[342950758,1732217470209,-988.511237,0.0004269,14]
[342950759,1732217470218,-414.786101,0.0004269,14]
[342950760,1732217470227,-988.511237,0.0004269,14]
[342950761,1732217470237,-216.682596,0.0004269,14]
[342950762,1732217470246,-216.682596,0.0004269,14]
[342950763,1732217470256,-268.890161,0.0004269,14]
[342950764,1732217470265,-268.890161,0.0004269,14]
[342950765,1732217470273,-409.4,0.0004269,14]
[342950766,1732217470282,-409.4,0.0004269,14]
[342950767,1732217470291,-151.0,0.0004269,14]
[342950768,1732217470300,-151.0,0.0004269,14]
[342950769,1732217470309,-156.922027,0.0004269,14]
[342950770,1732217470318,-156.922027,0.0004269,14]
[342950771,1732217470327,-155.068252,0.0004269,14]
[342950772,1732217470336,-151.0,0.0004269,14]
[342950773,1732217470346,-151.0,0.0004269,14]
[342950774,1732217470355,-151.0,0.0004269,14]
[342950775,1732217470363,-151.0,0.0004269,14]
[342950776,1732217470514,-584.228945,0.0004269,14]
[342950777,1732217470523,-584.228945,0.0004269,14]
[342950778,1732217470532,-151.0,0.0004269,14]
[342950779,1732217470542,-151.0,0.0004269,14]
[342950780,1732217470551,-584.228945,0.0004269,14]
[342950781,1732217470561,-584.228945,0.0004269,14]
[342950782,1732217470570,-754.734951,0.0004269,14]
[342950783,1732217470579,-754.734951,0.0004269,14]
[342950784,1732217470589,-754.734951,0.0004269,14]
[342950785,1732217470598,-754.734951,0.0004269,14]
[342950786,1732217470607,-151.0,0.0004269,14]
[342950787,1732217470617,-151.0,0.0004269,14]
[342950788,1732217470627,-531.392661,0.0004269,14]
[342950789,1732217470636,-531.392661,0.0004269,14]
[342950790,1732217470646,-531.392661,0.0004269,14]
[342950791,1732217470658,-531.392661,0.0004269,14]
[342950792,1732217470667,-257.046829,0.0004269,14]
[342950793,1732217470676,-257.046829,0.0004269,14]
[342950794,1732217470686,-151.0,0.0004269,14]
[342950795,1732217470695,-151.0,0.0004269,14]
[342950796,1732217470704,-257.046829,0.0004269,14]
[342950797,1732217470714,-257.046829,0.0004269,14]
[342950798,1732217470724,-151.0,0.0004269,14]
[342950799,1732217470733,-151.0,0.0004269,14]
[342950800,1732217470742,-151.0,0.0004269,14]
[342950801,1732217470752,-151.0,0.0004269,14]
[342950802,1732217470762,-355.875565,0.0004269,14]
[342950803,1732217470774,-355.875565,0.0004269,14]
[342950804,1732217470784,-355.875565,0.0004269,14]
[342950805,1732217470793,-355.875565,0.0004269,14]
[342950806,1732217470802,-531.634416,0.0004269,14]
[342950807,1732217470813,-531.634416,0.0004269,14]
[342950808,1732217470823,-531.634416,0.0004269,14]
[342950809,1732217470832,-531.634416,0.0004269,14]
[342950810,1732217470841,-257.777623,0.0004269,14]
[342950811,1732217470852,-257.777623,0.0004269,14]
[342950812,1732217470862,-257.777623,0.0004269,14]
[342950813,1732217470872,-257.777623,0.0004269,14]
[342950814,1732217470881,-610.612746,0.0004269,14]
[342950815,1732217470891,-465.219636,0.0004269,14]
[342950816,1732217470902,-653.448917,0.0004269,14]
[342950817,1732217470911,-465.219636,0.0004269,14]
[342950818,1732217470920,-653.448917,0.0004269,14]
[342950819,1732217470929,-457.257012,0.0004269,14]
[342950820,1732217470938,-457.257012,0.0004269,14]
[342950821,1732217470947,-151.0,0.0004269,14]
[342950822,1732217470957,-151.0,0.0004269,14]
[342950823,1732217470966,-151.0,0.0004269,14]
[342950824,1732217470976,-990.526881,0.0004269,14]
[342950825,1732217470985,-990.526881,0.0004269,14]
[342950826,1732217470994,-151.0,0.0004269,14]
[342950827,1732217471003,-214.248085,0.0004269,14]
[342950828,1732217471012,-214.248085,0.0004269,14]
[342950829,1732217471022,-484.845,0.0004269,14]
[342950830,1732217471031,-484.845,0.0004269,14]
[342950831,1732217471040,-340.256701,0.0004269,14]
[342950832,1732217471051,-340.256701,0.0004269,14]
[342950833,1732217471060,-151.0,0.0004269,14]
[342950834,1732217471069,-151.0,0.0004269,14]
[342950835,1732217471079,-318.982561,0.0004269,14]
[342950836,1732217471088,-318.982561,0.0004269,14]
[342950837,1732217471099,-581.503174,0.0004269,14]
[342950838,1732217471108,-581.503174,0.0004269,14]
[342950839,1732217471117,-151.0,0.0004269,14]
[342950840,1732217471126,-151.0,0.0004269,14]
[342950841,1732217471135,-313.221751,0.0004269,14]
[342950842,1732217471144,-313.221751,0.0004269,14]
[342950843,1732217471157,-395.860156,0.0004269,14]
[342950844,1732217471168,-395.860156,0.0004269,14]
[342950845,1732217471177,-532.540821,0.0004269,14]
[342950846,1732217471186,-522.73797,0.0004269,14]
[342950847,1732217471195,-522.73797,0.0004269,14]
[342950848,1732217471205,-532.540821,0.0004269,14]
[342950849,1732217471213,-151.0,0.0004269,14]
[342950850,1732217471222,-151.0,0.0004269,14]
[342950851,1732217471231,-307.098401,0.0004269,14]
[342950852,1732217471241,-212.117254,0.0004269,7]
[342950853,1732217471250,-307.098401,0.0004269,14]
[342950854,1732217471260,-151.0,0.0004269,14]
[342950855,1732217471269,-151.0,0.0004269,14]
[342950856,1732217471278,-212.117254,0.0004269,7]
[342950857,1732217471287,-151.0,0.0004269,14]
[342950858,1732217471296,-353.394556,0.0004269,14]
[342950859,1732217471306,-570.576073,0.0004269,14]
[342950860,1732217471315,-31864.05400505,0.0004269,60]
[342950861,1732217471324,-353.394556,0.0004269,14]
[342950862,1732217471333,-570.576073,0.0004269,14]
[342950863,1732217471343,-621.762382,0.0004269,14]
[342950864,1732217471352,-151.0,0.0004269,14]
[342950865,1732217471361,-1029.183445,0.0004269,14]
[342950866,1732217471370,-621.762382,0.0004269,14]
[342950867,1732217471379,-1029.183445,0.0004269,14]
[342950868,1732217471388,-1256.868843,0.0004269,14]
[342950869,1732217471400,-588.575198,0.0004269,14]
[342950870,1732217471410,-1256.868843,0.0004269,14]
[342950871,1732217471419,-588.575198,0.0004269,14]
[342950872,1732217471428,-167.282727,0.0004269,14]
[342950873,1732217471438,-167.282727,0.0004269,14]
[342950874,1732217471447,-151.0,0.0004269,14]
[342950875,1732217471457,-151.0,0.0004269,14]
[342950876,1732217471466,-373.418927,0.0004269,14]
[342950877,1732217471475,-373.418927,0.0004269,14]
[342950878,1732217471484,-151.0,0.0004269,14]
[342950879,1732217471493,-382.551216,0.0004269,14]
[342950880,1732217471502,-151.0,0.0004269,14]
[342950881,1732217471511,-382.551216,0.0004269,14]
[342950882,1732217471521,-151.0,0.0004269,14]
[342950883,1732217471530,-151.0,0.0004269,14]
[342950884,1732217471539,-224.590002,0.0004269,14]
[342950885,1732217471549,-224.590002,0.0004269,14]
[342950886,1732217471558,-1170.921735,0.0004269,14]
[342950887,1732217471567,-223.142127,0.0004269,14]
[342950888,1732217471577,-1170.921735,0.0004269,14]
[342950889,1732217471586,-669.909396,0.0004269,14]
[342950890,1732217471595,-223.142127,0.0004269,14]
[342950891,1732217471604,-151.0,0.0004269,14]
[342950892,1732217471614,-669.909396,0.0004269,14]
[342950893,1732217471623,-417.95,0.0004269,7]
[342950894,1732217471632,-417.95,0.0004269,7]
[342950895,1732217471641,-214.527844,0.0004269,14]
[342950896,1732217471654,-214.527844,0.0004269,14]
[342950897,1732217471667,-151.0,0.0004269,14]
[342950898,1732217471676,-415.013785,0.0004269,14]
[342950899,1732217471685,-151.0,0.0004269,14]
[342950900,1732217471694,-415.013785,0.0004269,14]
[342950901,1732217471703,-10498.0,0.000427,120]
[342950902,1732217471712,-1000.0,0.000427,19]
[342950903,1732217471721,-1000.0,0.000427,19]
[342950904,1732217471731,-430.16,0.00042735,120]
[342950905,1732217471740,-703.2,0.00042737,7]
[342950906,1732217471750,-151.0,0.00042739,14]
[342950907,1732217471759,-151.0,0.00042739,14]
[342950908,1732217471773,-299.673936,0.00042739,14]
[342950909,1732217471783,-299.673936,0.00042739,14]
[342950910,1732217471792,-161.735392,0.00042739,14]
[342950911,1732217471802,-161.735392,0.00042739,14]
[342950912,1732217471811,-333.39,0.00042739,14]
[342950913,1732217471820,-333.39,0.00042739,14]
[342950914,1732217471830,-219.815437,0.00042739,14]
[342950915,1732217471839,-219.815437,0.00042739,14]
[342950916,1732217471850,-208.901966,0.00042739,14]
[342950917,1732217471859,-208.901966,0.00042739,14]
[342950918,1732217471869,-151.0,0.00042739,14]
[342950919,1732217471878,-151.0,0.00042739,14]
[342950920,1732217471888,-151.0,0.00042739,14]
[342950921,1732217471897,-374.7389,0.00042739,14]
[342950922,1732217471915,-374.7389,0.00042739,14]
[342950923,1732217471924,-262.5162,0.00042739,14]
[342950924,1732217471933,-262.5162,0.00042739,14]
[342950925,1732217471943,-264.857564,0.00042739,14]
[342950926,1732217471952,-151.0,0.00042739,14]
[342950927,1732217471962,-264.857564,0.00042739,14]
[342950928,1732217471971,-224.244943,0.00042739,14]
[342950929,1732217471980,-224.244943,0.00042739,14]
[342950930,1732217471989,-225.775078,0.00042739,14]
[342950931,1732217471998,-390.811008,0.00042739,14]
[342950932,1732217472008,-390.811008,0.00042739,14]
[342950933,1732217472018,-330.6625,0.00042739,14]
[342950934,1732217472028,-330.6625,0.00042739,14]
[342950935,1732217472037,-465.0803,0.00042739,14]
[342950936,1732217472047,-465.0803,0.00042739,14]
[342950937,1732217472057,-919.83258,0.00042739,14]
[342950938,1732217472067,-919.83258,0.00042739,14]
[342950939,1732217472076,-526.559534,0.00042739,14]
[342950940,1732217472085,-205.058868,0.00042739,14]
[342950941,1732217472094,-205.058868,0.00042739,14]
[342950942,1732217472103,-553.32888,0.00042739,14]
[342950943,1732217472112,-192.18045,0.00042739,14]
[342950944,1732217472122,-192.18045,0.00042739,14]
[342950945,1732217472131,-151.0,0.00042739,14]
[342950946,1732217472140,-151.0,0.00042739,14]
[342950947,1732217472149,-151.0,0.00042739,14]
[342950948,1732217472162,-414.786101,0.00042739,14]
[342950949,1732217472171,-988.511237,0.00042739,14]
[342950950,1732217472180,-414.786101,0.00042739,14]
[342950951,1732217472190,-988.511237,0.00042739,14]
[342950952,1732217472199,-216.682596,0.00042739,14]
[342950953,1732217472208,-216.682596,0.00042739,14]
[342950954,1732217472217,-268.890161,0.00042739,14]
[342950955,1732217472227,-268.890161,0.00042739,14]
[342950956,1732217472236,-409.4,0.00042739,14]
[342950957,1732217472245,-409.4,0.00042739,14]
[342950958,1732217472254,-151.0,0.00042739,14]
[342950959,1732217472263,-151.0,0.00042739,14]
[342950960,1732217472272,-156.922027,0.00042739,14]
[342950961,1732217472281,-156.922027,0.00042739,14]
[342950962,1732217472290,-766.72,0.00042739,11]
[342950963,1732217472300,-500.0,0.00042739,11]
[342950964,1732217472308,-1774.58,0.00042739,10]
[342950965,1732217472318,-700.0,0.00042739,16]
[342950966,1732217472327,-700.0,0.00042739,16]
[342950967,1732217472335,-700.0,0.00042739,16]
[342950968,1732217472344,-700.0,0.00042739,16]
[342950969,1732217472353,-700.0,0.00042739,16]
[342950970,1732217472362,-700.0,0.00042739,16]
[342950971,1732217472371,-700.0,0.00042739,16]
[342950972,1732217472380,-700.0,0.00042739,16]
[342950973,1732217472389,-700.0,0.00042739,16]
[342950974,1732217472398,-700.0,0.00042739,16]
[342950975,1732217472412,-500.0,0.00042739,11]
[342950976,1732217472421,-1061.2,0.00042739,11]
[342950977,1732217472430,-500.0,0.00042739,11]
[342950978,1732217472439,-678.05,0.00042739,11]
[342950979,1732217472448,-518.39,0.00042739,11]
[342950980,1732217472457,-2438.63,0.00042739,11]
[342950981,1732217472466,-695.85,0.00042739,11]
[342950982,1732217472475,-1019.62,0.00042739,11]
[342950983,1732217472484,-500.0,0.00042739,11]
[342950984,1732217472494,-748.44,0.00042739,11]
[342950985,1732217472503,-250.01036526,0.00042739,11]
[342950986,1732217472512,-500.0,0.00042739,11]
[342950987,1732217472521,-502.27,0.00042739,11]
[342950988,1732217472530,-505.55,0.00042739,11]
[342950989,1732217472539,-1116.54,0.00042739,11]
[342950990,1732217472548,-500.0,0.00042739,11]
[342950991,1732217472558,-500.0,0.00042739,11]
[342950992,1732217472567,-639.79,0.00042739,11]
[342950993,1732217472576,-1143.93,0.00042739,10]
[342950994,1732217472585,-777.56,0.00042739,11]
[342950995,1732217472594,-6107.76,0.00042739,11]
[342950996,1732217472604,-1212.16,0.00042739,11]
[342950997,1732217472613,-700.0,0.00042744,16]
[342950998,1732217472623,-700.0,0.00042744,16]
[342950999,1732217472631,-700.0,0.00042744,16]
[342951000,1732217472640,-700.0,0.00042744,16]
[342951001,1732217472650,-700.0,0.00042744,16]
[342951002,1732217472661,-700.0,0.00042744,16]
[342951003,1732217472670,-700.0,0.00042744,16]
[342951004,1732217472679,-700.0,0.00042744,16]
[342951005,1732217472687,-700.0,0.00042744,16]
[342951006,1732217472696,-700.0,0.00042744,16]
[342951007,1732217472705,-2800.89945282,0.00042747,43]
[342951008,1732217472715,-2000.0,0.00042775,2]
[342951009,1732217472724,-2308.09,0.00042791,2]
[342951010,1732217472733,-3518.70419142,0.00042799,2]
[342951011,1732217472742,-16777.04669158,0.000428,60]
[342951012,1732217472751,-151.0,0.000428,14]
[342951013,1732217472760,-151.0,0.000428,14]
[342951014,1732217472770,-355.875565,0.000428,14]
[342951015,1732217472782,-355.875565,0.000428,14]
[342951016,1732217472791,-531.634416,0.000428,14]
[342951017,1732217472800,-531.634416,0.000428,14]
[342951018,1732217472809,-610.612746,0.000428,14]
[342951019,1732217472818,-465.219636,0.000428,14]
[342951020,1732217472827,-653.448917,0.000428,14]